[Event "Hungarian Youth-ch U10 2022"]
[Site "Eger"]
[Date "2022.07.27"]
[Round "5.4"]
[White "Papai, Mate"]
[Black "Molnar-Saska, Tamas"]
[Result "0-1"]
[ECO "A40"]
[WhiteElo "1385"]
[BlackElo "1455"]
[Annotator "NA RC COMBH"]
[PlyCount "99"]
[EventDate "2022.07.21"]
[EventType "tourn"]
[EventCountry "HUN"]
[SourceTitle "playchess.com"]
[Source "ChessBase"]
[SourceQuality "1"]
[TimeControl "40/5400+30:1800+30"]

1. d4 {[%emt 0:00:41]} e5 {[%emt 0:00:37]} 2. dxe5 {[%emt 0:00:47]} Nc6 {[%emt 0:00:06]} 3. Nf3 {[%emt 0:00:43]} Qe7 {[%emt 0:00:14]} 4. Bf4 {[%emt 0:01:28]} Qb4+ {[%emt 0:00:29]} 5. Bd2 {[%emt 0:00:22]} Qxb2 {[%emt 0:00:11]} 6. Nc3 {[%emt 0:00:36]} Bb4 {[%emt 0:00:22]} 7. Rb1 {[%emt 0:00:41]} Qa3 {[%emt 0:01:18]} 8. Nb5 {[%emt 0:10:39]} Bxd2+ {[%emt 0:01:37]} 9. Qxd2 {[%emt 0:02:17]} Qxa2 {[%emt 0:01:59]} 10. Rd1 {[%emt 0:00:33]} Kd8 {[%emt 0:02:14]} 11. Qg5+ {[%emt 0:03:25]} Nge7 {[%emt 0:01:23]} 12. e3 {[%emt 0:11:01]} Nb4 {[%emt 0:08:43]} 13. Nfd4 {[%emt 0:09:16]} Rg8 {[%emt 0:04:43]} 14. e6 {[%emt 0:10:46]} fxe6 {[%emt 0:02:41]} 15. Qc5 {[%emt 0:04:13]} Nbc6 {[%emt 0:03:33]} 16. Bc4 {[%emt 0:02:49]} Qa5+ {[%emt 0:03:00]} 17. Ke2 {[%emt 0:03:58]} Ke8 {[%emt 0:01:03]} 18. Qh5+ {[%emt 0:02:36]} g6 {[%emt 0:01:28]} 19. Nxc6 {[%emt 0:00:36]} Nxc6 {[%emt 0:00:42]} 20. Qxh7 {[%emt 0:01:22]} Ne7 {[%emt 0:03:04]} 21. Rd3 {[%emt 0:02:42]} a6 {[%emt 0:04:17]} 22. Rhd1 {[%emt 0:03:08]} d5 {[%emt 0:02:43]} 23. e4 {[%emt 0:04:32]} axb5 {[%emt 0:03:56]} 24. exd5 {[%emt 0:00:38]} bxc4 {[%emt 0:01:45]} 25. Rd4 {[%emt 0:04:55]} c3 {[%emt 0:02:57]} 26. Re4 {[%emt 0:02:37]} c6 {[%emt 0:04:55]} 27. d6 {[%emt 0:00:48]} Qh5+ {[%emt 0:02:35]} 28. Qxh5 {[%emt 0:00:34]} gxh5 {[%emt 0:00:10]} 29. dxe7 {[%emt 0:00:09]} Kxe7 {[%emt 0:01:20]} 30. g3 {[%emt 0:00:09]} Rf8 {[%emt 0:02:41]} 31. Re3 {[%emt 0:00:32]} Ra3 {[%emt 0:01:45]} 32. f3 {[%emt 0:01:05]} Rd8 {[%emt 0:01:36]} 33. Rxd8 Kxd8 {[%emt 0:00:09]} 34. Re5 {[%emt 0:01:16]} h4 {[%emt 0:02:05]} 35. g4 {[%emt 0:00:52]} b5 {[%emt 0:01:43]} 36. g5 {[%emt 0:01:11]} Ke7 {[%emt 0:00:34]} 37. f4 {[%emt 0:00:13]} Kf7 {[%emt 0:02:52]} 38. Rc5 {[%emt 0:02:00]} Bd7 {[%emt 0:01:49]} 39. Ke3 {[%emt 0:00:30]} b4 {[%emt 0:03:05]} 40. Kd4 {[%emt 0:00:00]} Ra1 {[%emt 0:00:00]} 41. Re5 {[%emt 0:03:15]} Ra2 {[%emt 0:07:06]} 42. Kd3 {[%emt 0:00:42]} Bc8 {[%emt 0:01:33]} 43. Kc4 {[%emt 0:01:22]} Rxc2 {[%emt 0:02:02]} 44. Kxb4 {[%emt 0:00:07]} Rxh2 {[%emt 0:00:25]} 45. Kxc3 {[%emt 0:00:08]} Rh1 {[%emt 0:01:35]} 46. Re2 {[%emt 0:01:08]} h3 {[%emt 0:00:16]} 47. Kd2 {[%emt 0:00:05]} h2 {[%emt 0:00:20]} 48. Ke3 {[%emt 0:00:01]} Ba6 {[%emt 0:00:28]} 49. g6+ {[%emt 0:00:02]} Kg7 {[%emt 0:00:27]} 50. Kd4 0-1

[Event "Hungarian Youth-ch U10 2022"]
[Site "Eger"]
[Date "2022.07.27"]
[Round "5.5"]
[White "Minga-Nagy, Abel Inti"]
[Black "Meszaros-Csonka, David"]
[Result "0-1"]
[ECO "D11"]
[WhiteElo "1540"]
[BlackElo "1361"]
[Annotator "NA RC COMBH"]
[PlyCount "68"]
[EventDate "2022.07.21"]
[EventType "tourn"]
[EventCountry "HUN"]
[SourceTitle "playchess.com"]
[Source "ChessBase"]
[SourceQuality "1"]
[TimeControl "40/5400+30:1800+30"]

1. d4 {[%emt 0:00:47]} d5 {[%emt 0:00:26]} 2. c4 {[%emt 0:00:06]} c6 {[%emt 0:00:40]} 3. Nf3 {[%emt 0:00:35]} Nf6 {[%emt 0:01:04]} 4. g3 {[%emt 0:00:57]} Bf5 {[%emt 0:02:31]} 5. Bg2 {[%emt 0:01:13]} e6 {[%emt 0:01:14]} 6. O-O {[%emt 0:00:41]} Nbd7 {[%emt 0:01:53]} 7. Nbd2 {[%emt 0:01:10]} Be7 {[%emt 0:02:16]} 8. Nh4 {[%emt 0:08:22]} Bg4 {[%emt 0:06:44]} 9. Re1 {[%emt 0:01:51]} O-O {[%emt 0:04:35]} 10. h3 {[%emt 0:10:11]} Bh5 {[%emt 0:01:47]} 11. g4 {[%emt 0:01:36]} Bg6 {[%emt 0:07:16]} 12. Nxg6 {[%emt 0:12:31]} hxg6 {[%emt 0:00:48]} 13. e4 {[%emt 0:03:46]} Nxe4 {[%emt 0:05:55]} 14. Nxe4 {[%emt 0:01:14]} dxe4 {[%emt 0:00:16]} 15. Bxe4 {[%emt 0:03:30]} e5 {[%emt 0:17:12]} 16. d5 {[%emt 0:01:48]} Qc7 {[%emt 0:04:12]} 17. b3 {[%emt 0:08:12]} f5 {[%emt 0:05:41]} 18. Bc2 {[%emt 0:04:00]} e4 {[%emt 0:05:31]} 19. Bb2 {[%emt 0:02:12]} Ne5 {[%emt 0:03:04]} 20. Bxe5 {[%emt 0:01:23]} Qxe5 {[%emt 0:00:08]} 21. Qd2 {[%emt 0:01:09]} Bc5 {[%emt 0:02:24]} 22. Kg2 {[%emt 0:01:54]} fxg4 {[%emt 0:04:49]} 23. Rf1 {[%emt 0:05:24]} gxh3+ {[%emt 0:01:05]} 24. Kh1 {[%emt 0:00:27]} Rf4 {[%emt 0:10:02]} 25. b4 {[%emt 0:01:17]} Bd4 {[%emt 0:00:24]} 26. Rad1 {[%emt 0:03:01]} Bc3 {[%emt 0:04:00]} 27. Qe3 {[%emt 0:00:55]} Qf6 {[%emt 0:00:53]} 28. Bxe4 {[%emt 0:01:03]} Re8 {[%emt 0:00:50]} 29. f3 {[%emt 0:00:28]} Rexe4 {[%emt 0:00:22]} 30. Qxe4 {[%emt 0:02:01]} Rxe4 {[%emt 0:00:07]} 31. fxe4 {[%emt 0:00:06]} Qe5 {[%emt 0:00:41]} 32. Rd3 {[%emt 0:00:51]} Qxe4+ {[%emt 0:01:08]} 33. Rff3 {[%emt 0:00:08]} Qe1+ {[%emt 0:00:38]} 34. Kh2 {[%emt 0:00:26]} Be5+ 0-1

[Event "Hungarian Youth-ch U10 2022"]
[Site "Eger"]
[Date "2022.07.27"]
[Round "5.6"]
[White "Csiszar, Vivien"]
[Black "Ferenczy, Nora"]
[Result "0-1"]
[ECO "B40"]
[WhiteElo "1068"]
[BlackElo "1051"]
[Annotator "NA RC COMBH"]
[PlyCount "112"]
[EventDate "2022.07.21"]
[EventType "tourn"]
[EventCountry "HUN"]
[SourceTitle "playchess.com"]
[Source "ChessBase"]
[SourceQuality "1"]
[TimeControl "40/5400+30:1800+30"]

1. e4 {[%emt 0:00:32]} c5 {[%emt 0:00:40]} 2. Nf3 {[%emt 0:00:09]} e6 {[%emt 0:00:13]} 3. c3 {[%emt 0:00:18]} d5 {[%emt 0:00:19]} 4. e5 {[%emt 0:00:39]} Nc6 {[%emt 0:02:23]} 5. d4 {[%emt 0:00:25]} f6 {[%emt 0:02:12]} 6. Bd3 {[%emt 0:11:58]} Qc7 {[%emt 0:06:11]} 7. Bf4 {[%emt 0:05:36]} cxd4 {[%emt 0:07:06]} 8. cxd4 {[%emt 0:00:25]} Qb6 {[%emt 0:03:53]} 9. Nc3 {[%emt 0:37:04]} Qxb2 {[%emt 0:06:46]} 10. Rc1 {[%emt 0:06:50]} Bb4 {[%emt 0:01:57]} 11. Qd2 {[%emt 0:04:05]} Qxd2+ {[%emt 0:08:02]} 12. Bxd2 {[%emt 0:00:30]} fxe5 {[%emt 0:03:51]} 13. dxe5 {[%emt 0:02:06]} a6 {[%emt 0:04:00]} 14. Na4 {[%emt 0:05:02]} Bxd2+ {[%emt 0:05:59]} 15. Kxd2 {[%emt 0:00:50]} Bd7 {[%emt 0:03:17]} 16. Nb6 {[%emt 0:03:04]} Rd8 {[%emt 0:02:04]} 17. Ng5 {[%emt 0:01:36]} g6 {[%emt 0:07:26]} 18. Nxd7 {[%emt 0:01:54]} Rxd7 {[%emt 0:01:51]} 19. Bxa6 {[%emt 0:02:09]} Nxe5 {[%emt 0:07:26]} 20. Bb5 {[%emt 0:01:14]} Nc6 {[%emt 0:01:03]} 21. Bxc6 {[%emt 0:00:20]} bxc6 {[%emt 0:00:29]} 22. Rxc6 {[%emt 0:00:08]} e5 {[%emt 0:01:09]} 23. Re6+ {[%emt 0:00:24]} Re7 {[%emt 0:00:34]} 24. Re1 {[%emt 0:01:23]} e4 {[%emt 0:03:47]} 25. Rd6 {[%emt 0:01:27]} Re5 {[%emt 0:01:56]} 26. f4 {[%emt 0:03:41]} Rf5 {[%emt 0:01:35]} 27. Rf1 {[%emt 0:01:36]} h6 {[%emt 0:02:32]} 28. g4 {[%emt 0:01:35]} Rf6 {[%emt 0:01:40]} 29. Re6+ {[%emt 0:01:48]} Kd7 {[%emt 0:00:56]} 30. Rxf6 {[%emt 0:00:10]} Nxf6 {[%emt 0:00:07]} 31. Nf7 {[%emt 0:00:11]} Ra8 {[%emt 0:01:20]} 32. Ne5+ {[%emt 0:00:20]} Kd6 {[%emt 0:01:20]} 33. Ra1 {[%emt 0:00:11]} d4 {[%emt 0:01:46]} 34. a4 {[%emt 0:00:10]} Kc5 {[%emt 0:01:09]} 35. Nxg6 {[%emt 0:01:46]} Nxg4 {[%emt 0:00:49]} 36. Rc1+ {[%emt 0:01:58]} Kb4 {[%emt 0:01:16]} 37. Rb1+ {[%emt 0:00:30]} Ka3 {[%emt 0:00:37]} 38. Re1 {[%emt 0:01:57]} e3+ {[%emt 0:01:01]} 39. Kd3 {[%emt 0:00:15]} Rxa4 {[%emt 0:00:40]} 40. Ra1+ {[%emt 0:00:00]} Kb3 {[%emt 0:00:00]} 41. Rxa4 {[%emt 0:05:08]} Kxa4 {[%emt 0:00:41]} 42. Ne5 {[%emt 0:03:21]} Nxe5+ {[%emt 0:03:05]} 43. fxe5 {[%emt 0:00:17]} Kb5 {[%emt 0:00:12]} 44. e6 {[%emt 0:01:55]} Kc6 {[%emt 0:00:18]} 45. e7 {[%emt 0:01:28]} Kd7 {[%emt 0:00:08]} 46. e8=Q+ {[%emt 0:00:10]} Kxe8 {[%emt 0:00:07]} 47. Ke2 {[%emt 0:01:00]} Kf7 {[%emt 0:00:08]} 48. Kd3 {[%emt 0:00:26]} Kf6 {[%emt 0:00:27]} 49. Ke2 {[%emt 0:00:21]} Kg5 {[%emt 0:00:33]} 50. Kd3 {[%emt 0:00:27]} Kg4 {[%emt 0:00:14]} 51. Ke2 {[%emt 0:00:15]} Kh3 {[%emt 0:00:23]} 52. Kf1 {[%emt 0:00:10]} d3 {[%emt 0:00:59]} 53. Ke1 {[%emt 0:00:14]} Kxh2 {[%emt 0:00:07]} 54. Kd1 {[%emt 0:00:28]} Kg2 {[%emt 0:00:13]} 55. Ke1 {[%emt 0:00:08]} e2 {[%emt 0:00:22]} 56. Kd2 {[%emt 0:00:06]} Kf2 {[%emt 0:00:07]} 0-1

[Event "Hungarian Youth-ch U10 2022"]
[Site "Eger"]
[Date "2022.07.27"]
[Round "5.7"]
[White "Wang, Luomeng"]
[Black "Hangay, Lilla"]
[Result "1/2-1/2"]
[ECO "C55"]
[WhiteElo "1078"]
[BlackElo "1169"]
[Annotator "NA RC COMBH"]
[PlyCount "114"]
[EventDate "2022.07.21"]
[EventType "tourn"]
[EventCountry "HUN"]
[SourceTitle "playchess.com"]
[Source "ChessBase"]
[SourceQuality "1"]
[TimeControl "40/5400+30:1800+30"]

1. e4 {[%emt 0:00:35]} e5 {[%emt 0:00:40]} 2. Nf3 {[%emt 0:00:10]} Nc6 {[%emt 0:00:21]} 3. d4 {[%emt 0:00:42]} exd4 {[%emt 0:00:36]} 4. Bc4 {[%emt 0:01:18]} Nf6 {[%emt 0:01:03]} 5. O-O {[%emt 0:00:28]} Be7 {[%emt 0:04:33]} 6. Nxd4 {[%emt 0:02:53]} Nxe4 {[%emt 0:04:49]} 7. Re1 {[%emt 0:04:44]} d5 {[%emt 0:01:40]} 8. Nxc6 {[%emt 0:00:46]} bxc6 {[%emt 0:00:31]} 9. Bd3 {[%emt 0:02:33]} O-O {[%emt 0:02:43]} 10. Bd2 {[%emt 0:06:01]} Nxd2 {[%emt 0:04:53]} 11. Nxd2 {[%emt 0:01:27]} Bf6 {[%emt 0:02:22]} 12. c3 {[%emt 0:01:44]} d4 {[%emt 0:01:22]} 13. Qc2 {[%emt 0:04:19]} g6 {[%emt 0:04:55]} 14. c4 {[%emt 0:04:02]} Be6 {[%emt 0:04:49]} 15. Ne4 {[%emt 0:05:09]} Bg7 {[%emt 0:03:46]} 16. Rab1 {[%emt 0:03:10]} Qh4 {[%emt 0:06:41]} 17. Nc5 {[%emt 0:02:43]} Bc8 {[%emt 0:02:03]} 18. Be4 {[%emt 0:02:33]} Qf6 {[%emt 0:04:04]} 19. Qa4 {[%emt 0:01:55]} Bf5 {[%emt 0:07:56]} 20. Bxf5 {[%emt 0:00:39]} Qxf5 {[%emt 0:01:27]} 21. Qxc6 {[%emt 0:01:25]} d3 {[%emt 0:02:24]} 22. Qd5 {[%emt 0:00:42]} Qxd5 {[%emt 0:01:10]} 23. cxd5 {[%emt 0:00:03]} d2 {[%emt 0:00:48]} 24. Red1 {[%emt 0:00:50]} Bh6 {[%emt 0:01:11]} 25. Nb3 {[%emt 0:01:02]} Rfd8 {[%emt 0:01:31]} 26. Nxd2 {[%emt 0:00:33]} Rxd5 {[%emt 0:00:19]} 27. Ne4 {[%emt 0:00:50]} Rxd1+ {[%emt 0:00:44]} 28. Rxd1 {[%emt 0:00:09]} Bg7 {[%emt 0:02:00]} 29. b3 {[%emt 0:01:26]} a5 {[%emt 0:01:58]} 30. Nc5 {[%emt 0:01:03]} Bf8 {[%emt 0:01:51]} 31. Na4 {[%emt 0:00:56]} Bb4 {[%emt 0:00:51]} 32. Kf1 {[%emt 0:01:13]} Re8 {[%emt 0:01:47]} 33. Nb2 {[%emt 0:00:48]} Re6 {[%emt 0:01:43]} 34. Nd3 {[%emt 0:00:58]} Rd6 {[%emt 0:00:52]} 35. f3 {[%emt 0:02:02]} Kf8 {[%emt 0:02:01]} 36. Nb2 {[%emt 0:00:51]} Rxd1+ {[%emt 0:01:24]} 37. Nxd1 {[%emt 0:00:06]} Ke7 {[%emt 0:00:48]} 38. Ke2 {[%emt 0:01:06]} Ke6 {[%emt 0:00:50]} 39. Kd3 {[%emt 0:00:48]} Kd5 {[%emt 0:01:19]} 40. Nc3+ {[%emt 0:00:00]} Bxc3 {[%emt 0:00:00]} 41. Kxc3 {[%emt 0:00:56]} Kc5 {[%emt 0:02:12]} 42. a3 {[%emt 0:00:14]} c6 {[%emt 0:07:25]} 43. b4+ {[%emt 0:00:12]} axb4+ {[%emt 0:00:19]} 44. axb4+ {[%emt 0:00:05]} Kb5 {[%emt 0:02:47]} 45. Kb3 {[%emt 0:00:08]} f5 {[%emt 0:02:22]} 46. g4 {[%emt 0:00:15]} fxg4 {[%emt 0:01:12]} 47. fxg4 {[%emt 0:00:06]} g5 {[%emt 0:01:14]} 48. h3 {[%emt 0:00:09]} h6 {[%emt 0:00:34]} 49. Kc3 {[%emt 0:00:08]} c5 {[%emt 0:00:15]} 50. bxc5 {[%emt 0:00:06]} Kxc5 {[%emt 0:00:13]} 51. Kd3 {[%emt 0:00:12]} Kd5 {[%emt 0:00:42]} 52. Ke3 {[%emt 0:00:09]} Ke5 {[%emt 0:00:24]} 53. Kf3 {[%emt 0:00:10]} Kf6 {[%emt 0:02:33]} 54. Kg3 {[%emt 0:01:02]} Kg6 {[%emt 0:00:18]} 55. h4 {[%emt 0:00:12]} h5 {[%emt 0:00:53]} 56. gxh5+ {[%emt 0:00:07]} Kxh5 {[%emt 0:00:16]} 57. hxg5 {[%emt 0:00:05]} Kxg5 1/2-1/2

[Event "Hungarian Youth-ch U10 2022"]
[Site "Eger"]
[Date "2022.07.27"]
[Round "5.8"]
[White "Hangyal, Anna"]
[Black "Illes-Nagy, Nora"]
[Result "1-0"]
[ECO "A16"]
[WhiteElo "1154"]
[BlackElo "1402"]
[Annotator "NA RC COMBH"]
[PlyCount "79"]
[EventDate "2022.07.21"]
[EventType "tourn"]
[EventCountry "HUN"]
[SourceTitle "playchess.com"]
[Source "ChessBase"]
[SourceQuality "1"]
[TimeControl "40/5400+30:1800+30"]

1. c4 {[%emt 0:00:37]} Nf6 {[%emt 0:00:49]} 2. Nc3 {[%emt 0:00:10]} d5 {[%emt 0:00:21]} 3. cxd5 {[%emt 0:00:35]} Nxd5 {[%emt 0:00:38]} 4. e4 {[%emt 0:00:18]} Nxc3 {[%emt 0:00:48]} 5. bxc3 {[%emt 0:00:10]} e6 {[%emt 0:00:55]} 6. g3 {[%emt 0:00:13]} c6 {[%emt 0:01:32]} 7. Bg2 {[%emt 0:00:11]} Nd7 {[%emt 0:05:54]} 8. d4 {[%emt 0:06:01]} Nb6 {[%emt 0:06:40]} 9. Qb3 {[%emt 0:02:02]} Be7 {[%emt 0:04:18]} 10. Ne2 {[%emt 0:01:05]} Bf6 {[%emt 0:06:10]} 11. e5 {[%emt 0:04:39]} Be7 {[%emt 0:00:26]} 12. c4 {[%emt 0:00:16]} Qc7 {[%emt 0:09:00]} 13. Bb2 {[%emt 0:03:02]} a5 {[%emt 0:01:55]} 14. a3 {[%emt 0:03:14]} a4 {[%emt 0:00:36]} 15. Qc2 {[%emt 0:00:16]} O-O {[%emt 0:04:43]} 16. O-O {[%emt 0:00:29]} Rd8 {[%emt 0:01:27]} 17. Rfd1 {[%emt 0:00:12]} g6 {[%emt 0:01:44]} 18. Rac1 {[%emt 0:01:32]} Bf8 {[%emt 0:00:54]} 19. Qb1 {[%emt 0:02:55]} Qb8 {[%emt 0:02:15]} 20. h3 {[%emt 0:12:45]} Bg7 {[%emt 0:03:58]} 21. f4 {[%emt 0:04:53]} Nd7 {[%emt 0:09:45]} 22. d5 {[%emt 0:01:32]} cxd5 {[%emt 0:00:47]} 23. cxd5 {[%emt 0:00:11]} exd5 {[%emt 0:00:05]} 24. Bxd5 {[%emt 0:00:22]} Re8 {[%emt 0:00:55]} 25. Qa2 {[%emt 0:01:22]} Nxe5 {[%emt 0:11:40]} 26. fxe5 {[%emt 0:00:35]} Be6 {[%emt 0:00:08]} 27. Bxe6 {[%emt 0:00:49]} Rxe6 {[%emt 0:00:14]} 28. Nf4 {[%emt 0:00:19]} Bh6 {[%emt 0:02:38]} 29. Nxe6 {[%emt 0:01:15]} Bxc1 {[%emt 0:00:17]} 30. Rxc1 {[%emt 0:00:09]} fxe6 {[%emt 0:00:26]} 31. Qxe6+ {[%emt 0:00:14]} Kg7 {[%emt 0:00:20]} 32. Qf6+ {[%emt 0:00:26]} Kg8 {[%emt 0:00:22]} 33. Rf1 {[%emt 0:01:13]} Qa7+ {[%emt 0:00:36]} 34. Kh1 {[%emt 0:00:14]} b5 {[%emt 0:00:32]} 35. Qe6+ {[%emt 0:00:29]} Kg7 {[%emt 0:00:33]} 36. Qd5 {[%emt 0:00:54]} Kh6 {[%emt 0:01:51]} 37. Rf7 {[%emt 0:01:12]} Qe3 {[%emt 0:01:10]} 38. Qxa8 {[%emt 0:01:14]} Qe1+ {[%emt 0:00:09]} 39. Kh2 {[%emt 0:00:21]} Qd2+ {[%emt 0:00:21]} 40. Qg2 {[%emt 0:00:00]} 1-0

[Event "Hungarian Youth-ch U10 2022"]
[Site "Eger"]
[Date "2022.07.28"]
[Round "6.1"]
[White "Morovan-Szabo, Lorinc"]
[Black "Meszaros-Csonka, David"]
[Result "1/2-1/2"]
[ECO "B73"]
[WhiteElo "1232"]
[BlackElo "1361"]
[Annotator "NA RC COMBH"]
[PlyCount "104"]
[EventDate "2022.07.21"]
[EventType "tourn"]
[EventCountry "HUN"]
[SourceTitle "playchess.com"]
[Source "ChessBase"]
[SourceQuality "1"]
[TimeControl "40/5400+30:1800+30"]

1. e4 {[%emt 0:00:35]} c5 {[%emt 0:01:04]} 2. Nf3 {[%emt 0:00:21]} g6 {[%emt 0:01:03]} 3. d4 {[%emt 0:00:40]} cxd4 {[%emt 0:01:07]} 4. Nxd4 {[%emt 0:00:16]} Nc6 {[%emt 0:01:01]} 5. Nc3 {[%emt 0:01:23]} Bg7 {[%emt 0:01:05]} 6. Be3 {[%emt 0:00:39]} Nf6 {[%emt 0:01:28]} 7. Be2 {[%emt 0:00:47]} O-O {[%emt 0:01:56]} 8. O-O {[%emt 0:01:25]} d6 {[%emt 0:01:04]} 9. Qd2 {[%emt 0:00:55]} Ng4 {[%emt 0:03:35]} 10. Bxg4 {[%emt 0:02:08]} Bxg4 {[%emt 0:00:13]} 11. h3 {[%emt 0:00:52]} Bd7 {[%emt 0:02:18]} 12. f4 {[%emt 0:01:37]} Rc8 {[%emt 0:07:55]} 13. f5 {[%emt 0:05:35]} Ne5 {[%emt 0:04:03]} 14. b3 {[%emt 0:02:11]} a6 {[%emt 0:05:52]} 15. Nde2 {[%emt 0:01:47]} b5 {[%emt 0:03:37]} 16. Nd5 {[%emt 0:01:01]} Rb8 {[%emt 0:07:30]} 17. Bg5 {[%emt 0:03:29]} f6 {[%emt 0:06:12]} 18. Be3 {[%emt 0:03:28]} e6 {[%emt 0:06:26]} 19. fxe6 {[%emt 0:00:53]} Bxe6 {[%emt 0:00:24]} 20. Nef4 {[%emt 0:01:26]} Bd7 {[%emt 0:04:52]} 21. Qb4 {[%emt 0:02:45]} Nf7 {[%emt 0:01:47]} 22. Rad1 {[%emt 0:01:03]} a5 {[%emt 0:02:08]} 23. Qe1 {[%emt 0:01:59]} Re8 {[%emt 0:03:23]} 24. Bd4 {[%emt 0:02:36]} Bf5 {[%emt 0:04:32]} 25. Qc3 {[%emt 0:01:06]} Rc8 {[%emt 0:05:15]} 26. Bxf6 {[%emt 0:03:21]} Rxc3 {[%emt 0:01:15]} 27. Bxd8 {[%emt 0:00:13]} Rxc2 {[%emt 0:01:24]} 28. exf5 {[%emt 0:01:07]} Rxd8 {[%emt 0:01:50]} 29. fxg6 {[%emt 0:01:11]} Ne5 {[%emt 0:02:45]} 30. Ne7+ {[%emt 0:01:00]} Kh8 {[%emt 0:00:43]} 31. gxh7 {[%emt 0:03:05]} Rd7 {[%emt 0:02:54]} 32. Nfg6+ {[%emt 0:01:22]} Nxg6 {[%emt 0:01:00]} 33. Nxg6+ {[%emt 0:01:02]} Kxh7 {[%emt 0:00:11]} 34. Nf8+ {[%emt 0:01:43]} Bxf8 {[%emt 0:00:06]} 35. Rxf8 {[%emt 0:00:14]} Rxa2 {[%emt 0:00:59]} 36. Rb8 {[%emt 0:00:37]} b4 {[%emt 0:01:05]} 37. Rd5 {[%emt 0:00:53]} Rg7 {[%emt 0:02:04]} 38. g4 {[%emt 0:00:16]} Ra3 {[%emt 0:03:00]} 39. Rbb5 {[%emt 0:01:53]} Rxb3 {[%emt 0:01:18]} 40. Rh5+ {[%emt 0:00:00]} Kg8 {[%emt 0:00:00]} 41. Rb8+ {[%emt 0:00:48]} Kf7 {[%emt 0:01:20]} 42. Rb7+ {[%emt 0:00:18]} Kg6 {[%emt 0:00:30]} 43. Rb6 {[%emt 0:01:10]} Rd7 {[%emt 0:07:15]} 44. Rxa5 {[%emt 0:00:41]} Rxh3 {[%emt 0:01:11]} 45. Rab5 {[%emt 0:00:28]} Rg3+ {[%emt 0:00:42]} 46. Kf2 {[%emt 0:00:19]} Rxg4 {[%emt 0:00:09]} 47. Rxb4 {[%emt 0:00:27]} Rxb4 {[%emt 0:00:07]} 48. Rxb4 {[%emt 0:00:23]} Re7 {[%emt 0:00:30]} 49. Rb2 {[%emt 0:00:42]} Re6 {[%emt 0:02:01]} 50. Re2 {[%emt 0:00:31]} Kf6 51. Rxe6+ {[%emt 0:00:31]} Kxe6 {[%emt 0:01:57]} 52. Ke2 {[%emt 0:00:12]} Ke5 1/2-1/2

[Event "Hungarian Youth-ch U10 2022"]
[Site "Eger"]
[Date "2022.07.28"]
[Round "6.2"]
[White "Molnar-Saska, Tamas"]
[Black "Minga-Nagy, Abel Inti"]
[Result "0-1"]
[ECO "B35"]
[WhiteElo "1455"]
[BlackElo "1540"]
[Annotator "NA RC COMBH"]
[PlyCount "46"]
[EventDate "2022.07.21"]
[EventType "tourn"]
[EventCountry "HUN"]
[SourceTitle "playchess.com"]
[Source "ChessBase"]
[SourceQuality "1"]
[TimeControl "40/5400+30:1800+30"]

1. e4 {[%emt 0:00:32]} c5 {[%emt 0:00:45]} 2. Nf3 {[%emt 0:00:05]} Nc6 {[%emt 0:00:18]} 3. d4 {[%emt 0:00:10]} cxd4 {[%emt 0:00:27]} 4. Nxd4 {[%emt 0:00:07]} g6 {[%emt 0:00:50]} 5. Nc3 {[%emt 0:01:48]} Bg7 {[%emt 0:01:28]} 6. Be3 {[%emt 0:00:34]} Nf6 {[%emt 0:01:07]} 7. Bc4 {[%emt 0:00:30]} O-O {[%emt 0:00:55]} 8. Bb3 {[%emt 0:01:06]} d6 {[%emt 0:00:42]} 9. f3 {[%emt 0:00:14]} Qb6 {[%emt 0:06:15]} 10. Nf5 {[%emt 0:01:40]} Qa5 {[%emt 0:02:25]} 11. Nxg7 {[%emt 0:00:35]} Kxg7 {[%emt 0:00:11]} 12. Qd2 {[%emt 0:01:28]} Qh5 {[%emt 0:01:16]} 13. O-O-O {[%emt 0:02:16]} Rd8 {[%emt 0:02:20]} 14. h4 {[%emt 0:03:06]} Na5 {[%emt 0:02:37]} 15. Nd5 {[%emt 0:10:32]} Nxb3+ {[%emt 0:01:12]} 16. axb3 {[%emt 0:00:23]} Nxd5 {[%emt 0:00:50]} 17. g4 {[%emt 0:00:33]} Bxg4 {[%emt 0:02:05]} 18. fxg4 {[%emt 0:01:29]} Qxg4 {[%emt 0:00:10]} 19. exd5 Rac8 {[%emt 0:01:30]} 20. Rdg1 {[%emt 0:04:14]} Qe4 {[%emt 0:02:00]} 21. Rf1 {[%emt 0:05:00]} h5 {[%emt 0:02:33]} 22. Rf4 {[%emt 0:00:43]} Qxh1+ {[%emt 0:00:10]} 23. Qd1 {[%emt 0:00:53]} Qxd1+ {[%emt 0:00:05]} 0-1

[Event "Hungarian Youth-ch U10 2022"]
[Site "Eger"]
[Date "2022.07.28"]
[Round "6.3"]
[White "Szollosi, Balazs"]
[Black "Papai, Mate"]
[Result "0-1"]
[ECO "B44"]
[WhiteElo "1423"]
[BlackElo "1385"]
[Annotator "NA RC COMBH"]
[PlyCount "56"]
[EventDate "2022.07.21"]
[EventType "tourn"]
[EventCountry "HUN"]
[SourceTitle "playchess.com"]
[Source "ChessBase"]
[SourceQuality "1"]
[TimeControl "40/5400+30:1800+30"]

1. e4 {[%emt 0:00:33]} c5 {[%emt 0:00:45]} 2. Nf3 {[%emt 0:00:18]} e6 {[%emt 0:00:17]} 3. d4 {[%emt 0:00:14]} cxd4 {[%emt 0:00:26]} 4. Nxd4 {[%emt 0:00:39]} Nc6 {[%emt 0:00:30]} 5. Nxc6 {[%emt 0:00:35]} bxc6 {[%emt 0:00:42]} 6. Bd3 {[%emt 0:04:34]} Nf6 {[%emt 0:02:28]} 7. Bg5 {[%emt 0:00:24]} h6 {[%emt 0:02:25]} 8. Bh4 {[%emt 0:01:36]} Bb7 {[%emt 0:03:11]} 9. O-O {[%emt 0:03:35]} Be7 {[%emt 0:01:24]} 10. Nc3 {[%emt 0:03:02]} O-O {[%emt 0:03:18]} 11. Re1 {[%emt 0:01:10]} d5 {[%emt 0:02:53]} 12. exd5 {[%emt 0:05:11]} cxd5 {[%emt 0:04:12]} 13. Ne2 {[%emt 0:01:24]} e5 {[%emt 0:07:26]} 14. Rc1 {[%emt 0:07:37]} d4 {[%emt 0:07:52]} 15. c4 {[%emt 0:02:54]} e4 {[%emt 0:02:12]} 16. Bxe4 {[%emt 0:06:40]} Bxe4 {[%emt 0:01:48]} 17. Nxd4 {[%emt 0:00:32]} g5 {[%emt 0:09:12]} 18. Bg3 {[%emt 0:03:17]} Bb4 {[%emt 0:02:56]} 19. Re2 {[%emt 0:03:13]} Rc8 {[%emt 0:05:20]} 20. Be5 {[%emt 0:03:14]} Bg6 {[%emt 0:01:58]} 21. Qb3 {[%emt 0:05:20]} Bd6 {[%emt 0:09:27]} 22. Nf3 {[%emt 0:04:54]} Bxe5 {[%emt 0:04:48]} 23. Rxe5 {[%emt 0:02:34]} Rb8 {[%emt 0:02:11]} 24. Qc3 {[%emt 0:00:57]} Ne4 {[%emt 0:05:46]} 25. Qa3 {[%emt 0:03:55]} g4 {[%emt 0:02:32]} 26. Rd5 {[%emt 0:02:09]} Qf6 {[%emt 0:01:09]} 27. Ne5 {[%emt 0:04:34]} Qxf2+ {[%emt 0:01:04]} 28. Kh1 {[%emt 0:00:14]} Rxb2 {[%emt 0:00:47]} 0-1